bitfinex/quotes_ETHUSD_20241231
["timestamp","ask_amount","ask_price","bid_price","bid_amount"]
[1735626199883,17.03269732,3366.7,3366.6,938.58475466]
[1735626200084,17.03269732,3366.7,3366.6,934.12921466]
[1735626200653,13.99754936,3366.7,3366.6,934.12921466]
[1735626200783,11.95954936,3366.7,3366.6,934.12921466]
[1735626201449,12.75954936,3366.7,3366.6,934.12921466]
[1735626201802,14.79754936,3366.7,3366.6,934.12921466]
[1735626201985,14.79754936,3366.7,3366.6,926.70331466]
[1735626202311,17.8701485,3366.7,3366.6,923.73295466]
[1735626202497,15.38473916,3366.7,3366.6,920.76259466]
[1735626202684,15.38473916,3366.7,3366.6,919.27741466]
[1735626203197,15.38473916,3366.7,3366.6,915.08045585]
[1735626203426,15.38473916,3366.7,3366.6,900.32258251]
[1735626204005,20.38132475,3366.7,3366.6,900.32258251]
[1735626204189,17.24632475,3366.7,3366.6,900.32258251]
[1735626204383,20.38132475,3366.7,3366.6,895.4364886]
[1735626204621,20.38132475,3366.7,3366.6,886.6364886]
[1735626205288,21.16057665,3366.7,3366.6,881.68156313]
[1735626205682,18.02557665,3366.7,3366.6,881.68156313]
[1735626205913,17.4483681,3366.7,3366.6,881.68156313]
[1735626206128,18.52514883,3366.7,3366.6,881.68156313]
[1735626206431,17.8701485,3366.7,3366.6,877.22602313]
[1735626206591,15.38473916,3366.7,3366.6,877.22602313]
[1735626207285,15.38473916,3366.7,3366.6,875.74084313]
[1735626207486,18.67516735,3366.7,3366.6,862.46814979]
[1735626207794,21.77740909,3366.7,3366.6,862.46814979]
[1735626207989,22.61060393,3366.7,3366.6,862.46814979]
[1735626208221,23.26560426,3366.7,3366.6,862.46814979]
[1735626208687,23.26560426,3366.7,3366.6,860.98296979]
[1735626209025,20.16336252,3366.7,3366.6,857.29404553]
[1735626209228,20.16336252,3366.7,3366.6,853.40983568]
[1735626209403,19.33016768,3366.7,3366.6,847.9578485]
[1735626210023,18.67516735,3366.7,3366.6,847.9578485]
[1735626210328,18.67516735,3366.7,3366.6,843.5023085]
[1735626210919,22.40846635,3366.7,3366.6,822.72090735]
[1735626211104,20.01807609,3366.7,3366.6,818.20188193]
[1735626211419,20.77780677,3366.7,3366.6,813.74634193]
[1735626211614,22.26600194,3366.7,3366.6,811.1400945]
[1735626211986,21.58690194,3366.7,3366.6,808.33841331]
[1735626212184,18.16766187,3366.7,3366.6,807.83229048]
[1735626212432,20.87404189,3366.7,3366.6,791.89444041]
[1735626212616,22.29435782,3366.7,3366.6,772.67564091]
[1735626212787,22.29435782,3366.7,3366.6,765.16141085]
[1735626212993,22.29435782,3366.7,3366.6,759.01097327]
[1735626213285,22.29435782,3366.7,3366.6,751.71823004]
[1735626213490,22.29435782,3366.7,3366.6,750.23305004]
[1735626213693,18.82824712,3366.7,3366.6,736.78743649]
[1735626213893,18.82824712,3366.7,3366.6,731.05944605]
[1735626214098,16.21568902,3366.7,3366.6,722.07115167]
[1735626214304,16.52453287,3366.7,3366.6,711.65439038]
[1735626214499,15.61953254,3366.7,3366.6,707.18334903]
[1735626214909,18.08106986,3366.7,3366.6,692.9316383]
[1735626215107,18.08106986,3366.7,3366.6,680.2116383]
[1735626215406,17.37564167,3366.7,3366.6,652.4360983]
[1735626215609,17.37564167,3366.7,3366.6,631.2360983]
[1735626215807,19.3459576,3366.7,3366.6,631.2360983]
[1735626216008,19.3459576,3366.7,3366.6,629.7460983]
[1735626216213,17.92564167,3366.7,3366.6,626.76487701]
[1735626216389,17.92564167,3366.7,3366.6,617.83687701]
[1735626216623,18.39195252,3366.7,3366.6,616.34687701]
[1735626216791,18.39195252,3366.7,3366.6,604.55454367]
[1735626216792,17.60073113,3366.7,3366.6,604.55454367]
[1735626216995,17.60073113,3366.7,3366.6,603.06454367]
[1735626217198,17.60073113,3366.7,3366.6,601.57454367]
[1735626217496,17.60073113,3366.7,3366.6,595.62900367]
[1735626217813,17.60073113,3366.7,3366.6,592.64900367]
[1735626218159,16.1804152,3366.7,3366.6,587.86049507]
[1735626218356,16.1804152,3366.7,3366.6,581.91495507]
[1735626218667,17.66861037,3366.7,3366.6,577.44356384]
[1735626218794,17.66861037,3366.7,3366.6,572.97217261]
[1735626219295,17.66861037,3366.7,3366.6,565.52595126]
[1735626219523,17.66861037,3366.7,3366.6,561.06559126]
[1735626219841,17.66861037,3366.7,3366.6,556.59425001]
[1735626219842,16.1804152,3366.7,3366.6,556.59425001]
[1735626220038,16.1804152,3366.7,3366.6,552.12293876]
[1735626220239,16.1804152,3366.7,3366.6,544.67049617]
[1735626220400,16.1804152,3366.7,3366.6,529.92495617]
[1735626220601,16.1804152,3366.7,3366.6,528.43495617]
[1735626220815,16.1804152,3366.7,3366.6,525.4536749]
[1735626220992,15.6304152,3366.7,3366.6,522.47263355]
[1735626221497,16.1804152,3366.7,3366.6,518.01709355]
[1735626221717,16.4784152,3366.7,3366.6,518.01709355]
[1735626222320,16.4784152,3366.7,3366.6,512.0656922]
[1735626222643,16.4784152,3366.7,3366.6,510.5805122]
[1735626222806,16.4784152,3366.7,3366.6,507.5993209]
[1735626223306,16.4784152,3366.7,3366.6,503.13291961]
[1735626223609,17.13341553,3366.7,3366.6,500.16255961]
[1735626223823,17.13341553,3366.7,3366.6,497.18151826]
[1735626224147,17.96661037,3366.7,3366.6,497.18151826]
[1735626224349,17.96661037,3366.7,3366.6,495.69633826]
[1735626224943,17.96661037,3366.7,3366.6,491.23002695]
[1735626225248,17.96661037,3366.7,3366.6,489.74484695]
[1735626225410,17.96661037,3366.7,3366.6,483.79330565]
[1735626225922,15.88061037,3366.7,3366.6,479.32708429]
[1735626226543,14.3924152,3366.7,3366.6,471.89050294]
[1735626226910,14.3924152,3366.7,3366.6,468.90946159]
[1735626227423,14.3924152,3366.7,3366.6,464.45392159]
[1735626228361,14.3924152,3366.7,3366.6,462.96874159]
[1735626228509,14.3924152,3366.7,3366.6,459.99838159]
[1735626228715,7.18997085,3366.7,3366.6,459.99838159]
[1735626229017,10.07157085,3366.7,3366.6,459.99838159]
[1735626229600,10.62157085,3366.7,3366.6,459.99838159]
[1735626230193,7.62157085,3366.7,3366.6,459.99838159]
[1735626230402,3.22026,3366.7,3366.6,459.99838159]
[1735626230554,2.97026,3366.7,3366.6,459.99838159]
[1735626230735,3.97469342,3366.9,3366.6,460.80848159]
[1735626231235,9.07497255,3366.7,3366.6,460.80848159]
[1735626232379,5.97026,3366.7,3366.6,460.80848159]
[1735626232878,6.52026,3366.7,3366.6,460.80848159]
[1735626233675,6.77026,3366.7,3366.6,460.80848159]
[1735626234042,6.77026,3366.7,3366.6,459.99838159]
[1735626234282,9.90526,3366.7,3366.6,459.99838159]
[1735626235277,13.62995342,3366.7,3366.6,459.99838159]
[1735626235639,13.87995342,3366.7,3366.6,459.99838159]
[1735626236034,13.62995342,3366.7,3366.6,459.99838159]
[1735626236439,13.87995342,3366.7,3366.6,459.99838159]
[1735626236663,13.62995342,3366.7,3366.6,459.99838159]
[1735626236874,10.49495342,3366.7,3366.6,459.99838159]
[1735626237178,9.94495342,3366.7,3366.6,459.99838159]
[1735626237343,6.22026,3366.7,3366.6,459.99838159]
[1735626237772,6.77026,3366.7,3366.6,459.99838159]
[1735626238137,9.90526,3366.7,3366.6,459.99838159]
[1735626240686,14.24664056,3366.7,3366.6,459.99838159]
[1735626242084,9.90526,3366.7,3366.6,459.99838159]
[1735626242282,5.97026,3366.7,3366.6,460.78948159]
[1735626242482,6.22026,3366.7,3366.6,460.78948159]
[1735626242681,5.97026,3366.7,3366.6,460.78948159]
[1735626243061,6.52026,3366.7,3366.6,460.78948159]
[1735626243387,6.52026,3366.7,3366.6,459.99838159]
[1735626243388,13.64218998,3366.7,3366.6,459.99838159]
[1735626243583,10.25718998,3366.7,3366.6,459.99838159]
[1735626243960,10.25718998,3366.7,3366.6,460.78948159]
[1735626244364,6.52026,3366.7,3366.6,460.78948159]
[1735626244781,9.65526,3366.7,3366.6,460.78948159]
[1735626245595,5.97026,3366.7,3366.6,460.78948159]
[1735626245885,6.52026,3366.7,3366.6,460.78948159]
[1735626246287,9.65526,3366.7,3366.6,459.99838159]
[1735626249077,14.01659552,3366.7,3366.6,459.99838159]
[1735626250195,10.88159552,3366.7,3366.6,459.99838159]
[1735626250381,14.01659552,3366.7,3366.6,459.99838159]
[1735626250755,10.88159552,3366.7,3366.6,459.99838159]
[1735626250954,10.33159552,3366.7,3366.6,459.99838159]
[1735626251354,14.01659552,3366.7,3366.6,459.99838159]
[1735626251789,9.65526,3366.7,3366.6,459.99838159]
[1735626253085,14.01659552,3366.7,3366.6,459.99838159]
[1735626255401,10.88159552,3366.7,3366.6,460.80858159]
[1735626255863,6.52026,3366.7,3366.6,460.80858159]
[1735626256063,3.0,3366.7,3366.6,460.80858159]
[1735626256660,4.36133552,3366.8,3366.7,0.8102]
[1735626257202,4.36133552,3367.0,3366.7,2.21195823]
[1735626257376,4.36133552,3367.0,3366.9,0.8102]
[1735626257966,7.36133552,3367.0,3366.9,0.8102]
[1735626258163,3.11387844,3367.0,3366.9,0.8102]
[1735626258396,9.08387844,3367.0,3366.9,0.8102]
[1735626259164,9.63387844,3367.0,3366.9,0.8102]
[1735626259369,9.00985957,3367.0,3366.9,0.8102]
[1735626260316,6.52,3367.0,3366.9,0.8102]
[1735626261115,5.97,3367.0,3366.9,0.8102]
[1735626261911,3.0,3367.0,3366.9,0.8102]
[1735626262674,3.73665412,3367.2,3366.9,1.83020586]
[1735626262879,3.73665412,3367.2,3367.0,0.8102]
[1735626263416,2.49008123,3367.1,3367.0,0.8102]
[1735626264382,3.0,3367.3,3367.0,0.8102]
[1735626265081,2.96987,3367.2,3367.0,0.8102]
[1735626265479,5.49008123,3367.4,3367.0,0.8102]
[1735626265679,5.96991,3367.1,3367.0,0.8102]
[1735626266822,8.45999123,3367.1,3367.0,0.8102]
[1735626267543,5.49008123,3367.1,3367.0,0.8102]
[1735626269011,3.0,3367.1,3367.0,0.8102]
[1735626271721,3.0,3367.1,3367.0,1.161858]
[1735626275696,2.96935,3367.8,3367.0,0.351658]
[1735626275822,0.029908,3368.1,3367.5,1.5865]
[1735626276020,0.029908,3368.2,3367.5,1.5865]
[1735626276321,3.0,3367.9,3367.5,1.5865]
[1735626276961,0.02890546,3367.8,3367.5,1.5865]
[1735626277160,2.99819546,3367.8,3367.5,1.5865]
[1735626277332,3.0,3367.7,3367.5,1.5865]
[1735626277768,0.02890546,3367.6,3367.5,1.5865]
[1735626279017,5.52087326,3367.6,3367.5,1.5865]
[1735626280361,3.02890546,3367.6,3367.5,1.5865]
[1735626280562,5.99837546,3367.6,3367.5,1.5865]
[1735626281185,3.0,3367.5,3366.9,1.6091]
[1735626281482,5.96958,3367.5,3366.9,1.6091]
[1735626281684,5.4919678,3367.8,3366.9,1.6091]
[1735626281997,2.96974,3367.3,3366.9,1.6091]
[1735626282973,3.0,3367.1,3366.9,1.6091]
[1735626283188,2.96994,3367.1,3366.9,1.6091]
[1735626283408,2.97,3367.0,3366.9,1.6091]
[1735626283705,2.97,3367.0,3366.6,459.99838159]
[1735626283706,2.97022,3366.8,3366.7,1.6091]
[1735626283912,5.97022,3366.8,3366.7,1.6091]
[1735626284049,3.0,3366.7,3366.6,459.99838159]
[1735626284256,5.97026,3366.7,3366.6,459.99838159]
[1735626286654,6.52026,3366.7,3366.6,459.99838159]
[1735626286880,8.51904701,3366.7,3366.6,459.99838159]
[1735626287509,11.65404701,3366.7,3366.6,452.57248159]
[1735626288300,16.01499067,3366.7,3366.6,451.08730159]
[1735626289166,12.87999067,3366.7,3366.6,448.11694159]
[1735626289461,8.51904701,3366.7,3366.6,446.63176159]
[1735626289618,8.51904701,3366.7,3366.6,439.20586159]
[1735626290442,8.51904701,3366.7,3366.6,437.72068159]
[1735626290617,8.51904701,3366.7,3366.6,434.75032159]
[1735626291024,8.51904701,3366.7,3366.6,433.26514159]
[1735626291221,8.51904701,3366.7,3366.6,431.77996159]
[1735626291427,8.51904701,3366.7,3366.6,430.29478159]
[1735626291763,8.51904701,3366.7,3366.6,428.80960159]
[1735626291970,8.51904701,3366.7,3366.6,424.35406159]
[1735626291971,12.87626521,3366.7,3366.6,424.35406159]
[1735626292261,15.58264523,3366.7,3366.6,424.35406159]
[1735626292482,15.58264523,3366.7,3366.6,422.86888159]
[1735626292970,15.58264523,3366.7,3366.6,419.92006159]
[1735626293102,11.22542703,3366.7,3366.6,419.67612159]
[1735626293303,11.22542703,3366.7,3366.6,419.43218159]
[1735626294520,11.57977088,3366.7,3366.6,419.43218159]
[1735626294712,11.98508574,3366.7,3366.6,419.43218159]
[1735626295414,15.12008574,3366.7,3366.6,419.43218159]
[1735626295724,15.43414467,3366.7,3366.6,410.63218159]
[1735626296323,15.43414467,3366.7,3366.6,408.95452028]
[1735626296510,16.04428339,3366.7,3366.6,408.95452028]
[1735626296941,15.73022446,3366.7,3366.6,408.95452028]
[1735626297251,16.8431617,3366.7,3366.6,408.95452028]
[1735626297839,15.43414467,3366.7,3366.6,408.95452028]
[1735626298350,15.43414467,3366.7,3366.6,406.79717778]
[1735626299742,15.43414467,3366.7,3366.6,397.0245031]
[1735626300569,15.43414467,3366.7,3366.6,392.5689631]
[1735626301507,15.43414467,3366.7,3366.6,383.7689631]
[1735626301890,15.43414467,3366.7,3366.6,383.4706631]
[1735626302354,21.59724089,3366.7,3366.6,383.4706631]
[1735626303009,22.3961192,3366.7,3366.6,383.4706631]
[1735626303152,23.00625792,3366.7,3366.6,383.4706631]
[1735626303910,23.30425792,3366.7,3366.6,383.4706631]
[1735626305454,17.1411617,3366.7,3366.6,383.4706631]
[1735626306117,16.34228339,3366.7,3366.6,383.4706631]
[1735626306718,16.04286735,3366.7,3366.6,383.4706631]
[1735626307412,14.8405235,3366.7,3366.6,383.4706631]
[1735626307613,14.49673649,3366.7,3366.6,383.4706631]
[1735626307818,19.96858793,3366.7,3366.6,381.86126559]
[1735626308176,20.51858793,3366.7,3366.6,380.25406698]
[1735626308626,15.3905235,3366.7,3366.6,380.25406698]
[1735626309152,16.00066222,3366.7,3366.6,380.25406698]
[1735626309449,15.10687521,3366.7,3366.6,380.25406698]
[1735626309626,14.24673649,3366.7,3366.6,380.25406698]
[1735626309829,19.1361946,3366.7,3366.6,380.25406698]
[1735626310140,19.83432546,3366.7,3366.6,380.25406698]
[1735626310682,20.44446418,3366.7,3366.6,380.25406698]
[1735626311249,15.49486735,3366.7,3366.6,378.5762098]
[1735626311463,15.49486735,3366.7,3366.6,364.89029955]
[1735626311749,15.63896853,3366.7,3366.6,363.93493412]
[1735626311878,17.3703484,3366.7,3366.6,361.95871074]
[1735626312078,17.3703484,3366.7,3366.6,360.39776507]
[1735626312343,17.3703484,3366.7,3366.6,359.05541074]
[1735626312700,17.3703484,3366.7,3366.6,357.79665777]
[1735626312942,17.3703484,3366.7,3366.6,356.72703763]
[1735626313249,17.3703484,3366.7,3366.6,354.97795876]
[1735626313404,17.3703484,3366.7,3366.6,353.88739537]
[1735626313599,17.3703484,3366.7,3366.6,353.14485906]
[1735626313804,16.76020968,3366.7,3366.6,349.20511345]
[1735626314005,16.76020968,3366.7,3366.6,345.72147695]
[1735626314342,15.96133137,3366.7,3366.6,343.46290541]
[1735626314849,15.96133137,3366.7,3366.6,340.16550277]
[1735626315063,15.96133137,3366.7,3366.6,335.33406062]
[1735626315349,15.96133137,3366.7,3366.6,330.81691752]
[1735626315522,15.96133137,3366.7,3366.6,329.24587543]
[1735626315833,15.96133137,3366.7,3366.6,328.67447835]
[1735626316060,15.96133137,3366.7,3366.6,313.39471483]
[1735626316352,15.96133137,3366.7,3366.6,288.71909937]
[1735626316563,15.96133137,3366.7,3366.6,280.2901392]
[1735626316736,15.96133137,3366.7,3366.6,278.1701392]
[1735626316904,15.96133137,3366.7,3366.6,278.0197154]
[1735626317104,15.96133137,3366.7,3366.6,273.12154961]
[1735626317317,15.96133137,3366.7,3366.6,271.43394961]
[1735626317577,15.96133137,3366.7,3366.6,267.959984]
[1735626317737,15.96133137,3366.7,3366.6,266.19071231]
[1735626318371,15.96133137,3366.7,3366.6,263.93214077]
[1735626318677,24.76133137,3366.7,3366.6,259.35464702]
[1735626318855,25.05933137,3366.7,3366.6,244.98640669]
[1735626319179,25.05933137,3366.7,3366.6,231.14828926]
[1735626319334,25.05933137,3366.7,3366.6,228.61581499]
[1735626319538,25.05933137,3366.7,3366.6,226.3781185]
[1735626319721,25.05933137,3366.7,3366.6,221.82204695]
[1735626319927,25.05933137,3366.7,3366.6,216.2663304]
[1735626320126,25.05933137,3366.7,3366.6,212.00846885]
[1735626320540,25.05933137,3366.7,3366.6,209.71095885]
[1735626320840,25.05933137,3366.7,3366.6,201.09475642]
[1735626321066,25.05933137,3366.7,3366.6,185.34302482]
[1735626321283,25.05933137,3366.7,3366.6,179.68505911]
[1735626321580,25.05933137,3366.7,3366.6,175.03640836]
[1735626321787,25.05933137,3366.7,3366.6,172.18245826]
[1735626321940,25.05933137,3366.7,3366.6,164.77847694]
[1735626322270,24.76133137,3366.7,3366.6,162.00696118]
[1735626322569,24.76133137,3366.7,3366.6,160.17414013]
[1735626322778,24.76133137,3366.7,3366.6,158.83157387]
[1735626322958,24.76133137,3366.7,3366.6,156.78041569]
[1735626323127,30.91161136,3366.7,3366.6,156.78041569]
[1735626324184,30.91161136,3366.7,3366.6,153.44440508]
[1735626324363,30.91161136,3366.7,3366.6,151.65803947]
[1735626325479,30.91161136,3366.7,3366.6,149.87167386]
[1735626325642,27.94135136,3366.7,3366.6,149.87167386]
[1735626326339,27.94135136,3366.7,3366.6,148.4343031]
[1735626326545,21.79107137,3366.7,3366.6,143.66799575]
[1735626326766,21.79107137,3366.7,3366.6,140.68805401]
[1735626327540,21.79107137,3366.7,3366.6,138.9016884]
[1735626327880,21.79107137,3366.7,3366.6,135.92174666]
[1735626328491,21.24107137,3366.7,3366.6,135.92174666]
[1735626328784,15.08656049,3366.7,3366.6,116.19997457]
[1735626328984,3.91512975,3366.7,3366.6,114.07997457]
[1735626329194,3.60107082,3366.7,3366.6,113.57787457]
[1735626329483,7.82239179,3366.7,3366.6,105.25317459]
[1735626330462,10.82239179,3366.7,3366.6,100.79763459]
[1735626330800,8.38554528,3366.7,3366.6,97.82727459]
[1735626331292,8.23014993,3366.7,3366.6,97.82727459]
[1735626331433,4.91947446,3366.7,3366.6,94.85691459]
[1735626331833,1.1881,3366.7,3366.6,94.85691459]
[1735626332037,4.1881,3366.7,3366.6,94.85691459]
[1735626332968,7.2993389,3366.7,3366.6,94.85691459]
[1735626333245,7.2993389,3366.7,3366.6,91.88655459]
[1735626333861,1.1881,3366.7,3366.6,89.18017457]
[1735626334693,1.1881,3366.7,3366.6,81.75427457]
[1735626335107,1.21503858,3366.7,3366.6,81.75427457]
[1735626335420,1.21503858,3366.7,3366.6,78.78391457]
[1735626335557,1.1881,3366.7,3366.6,75.81355457]
[1735626335759,0.29702,3366.7,3366.6,75.81355457]
[1735626336128,0.66336026,3366.7,3366.6,75.81355457]
[1735626336309,0.66336026,3366.7,3366.6,74.32837457]
[1735626336458,0.69029884,3366.7,3366.6,70.13903617]
[1735626336658,0.32395858,3366.7,3366.6,70.13903617]
[1735626337002,0.66336026,3366.7,3366.6,70.13903617]
[1735626337505,0.91336026,3366.7,3366.6,70.13903617]
[1735626338005,0.94029884,3366.7,3366.6,70.13903617]
[1735626341009,9.08259927,3366.7,3366.6,70.13903617]
[1735626341360,8.83259927,3366.7,3366.6,70.13903617]
[1735626341716,10.27413627,3366.7,3366.6,70.13903617]
[1735626342359,10.02413627,3366.7,3366.6,70.13903617]
[1735626344213,8.01683584,3366.7,3366.6,70.13903617]
[1735626344412,4.88183584,3366.7,3366.6,70.13903617]
[1735626345818,4.58481584,3366.7,3366.6,70.13903617]
[1735626346609,7.71981584,3366.7,3366.6,70.13903617]
[1735626347510,4.58481584,3366.7,3366.6,70.13903617]
[1735626347816,7.71981584,3366.7,3366.6,70.13903617]
[1735626348195,4.58481584,3366.7,3366.6,70.13903617]
[1735626348508,3.02693858,3366.7,3366.6,70.13903617]
[1735626350695,0.02693858,3366.7,3366.6,70.13903617]
[1735626350996,3.73212615,3366.7,3366.6,68.52113617]
[1735626351192,3.73212615,3366.7,3366.6,71.52688931]
[1735626351385,6.73212615,3366.7,3366.6,71.52688931]
[1735626351712,3.73212615,3366.7,3366.6,71.52688931]
[1735626351926,0.39892615,3366.7,3366.6,71.52688931]
[1735626352220,3.10861859,3366.8,3366.7,1.623]
[1735626353301,3.10861859,3367.3,3366.7,1.623]
[1735626353973,3.0,3367.2,3366.7,1.623]
[1735626354167,0.29905893,3367.9,3366.7,1.623]
[1735626354489,0.029908,3367.8,3366.7,1.623]
[1735626354822,0.029908,3367.8,3366.9,1.623]
[1735626357319,0.32896693,3368.1,3366.9,1.623]
[1735626359401,0.0276047,3368.0,3366.9,1.623]
[1735626359605,0.0575127,3368.0,3366.9,1.623]
[1735626359779,0.029908,3368.0,3366.9,1.623]
[1735626360120,0.029908,3368.0,3367.1,1.6056]
[1735626360323,0.32896693,3368.1,3367.1,1.6056]
[1735626360506,0.0276047,3367.9,3367.1,1.6056]
[1735626360674,0.32896693,3368.1,3367.1,1.6056]
[1735626360869,0.0276047,3367.8,3367.1,1.6056]
[1735626361116,0.32896693,3368.1,3367.1,0.80408475]
[1735626361421,0.32896693,3368.1,3367.2,1.6056]
[1735626362306,0.029908,3368.1,3367.2,1.6056]
[1735626362622,0.029908,3368.2,3367.2,1.6056]
[1735626362781,0.02762793,3368.0,3367.2,1.6056]
[1735626362981,0.029908,3368.2,3367.2,1.6056]
[1735626363214,0.02762793,3367.9,3367.2,1.84656848]
[1735626363400,0.029908,3368.2,3367.2,1.84656848]
[1735626363594,0.02762793,3367.8,3367.2,1.84656848]
[1735626363800,0.029908,3368.2,3367.2,1.84656848]
[1735626363999,0.02762793,3367.7,3367.2,1.84656848]
[1735626364328,3.029908,3368.2,3367.2,1.84656848]
[1735626364531,0.029908,3368.2,3367.2,1.84656848]
[1735626364678,0.02762793,3368.1,3367.2,1.84656848]
[1735626365182,7.18765104,3368.0,3367.2,1.6056]
[1735626365378,0.32674105,3368.0,3367.2,1.6056]
[1735626366725,0.029908,3367.9,3367.2,1.6056]
[1735626367300,0.02768212,3367.8,3367.2,1.6056]
[1735626368087,0.029908,3367.9,3367.2,1.6056]
[1735626370340,3.02768212,3367.8,3367.2,1.6056]
[1735626370538,0.029908,3367.7,3367.2,1.6056]
[1735626370921,0.02768988,3367.6,3367.2,1.6056]
[1735626372063,3.0,3367.4,3367.2,1.6056]
[1735626372587,0.02768988,3367.3,3367.2,1.6056]
[1735626373071,6.12962626,3367.3,3367.2,1.6056]
[1735626373238,3.0,3367.2,3366.6,68.52113617]
[1735626373445,0.029908,3367.2,3366.7,1.6014]
[1735626373625,3.13184438,3367.3,3366.7,1.6014]
[1735626373844,0.02729501,3367.1,3366.7,1.6014]
[1735626374043,0.029908,3367.3,3366.7,1.6014]
[1735626374247,0.02729501,3367.0,3366.7,1.6014]
[1735626374476,0.029908,3367.3,3366.7,1.6014]
[1735626374633,0.02729501,3366.9,3366.7,1.6014]
[1735626374833,0.029908,3367.3,3366.7,1.6014]
[1735626375062,6.13870475,3366.8,3366.7,1.6014]
[1735626375264,6.11140974,3366.8,3366.7,1.6014]
[1735626377029,3.50481267,3366.8,3366.6,68.52113617]
[1735626377321,6.50434026,3366.7,3366.6,68.52113617]
[1735626377730,6.53141842,3366.7,3366.6,68.52113617]
[1735626377930,8.42766227,3366.7,3366.6,68.52113617]
[1735626378827,8.40058411,3366.7,3366.6,68.52113617]
[1735626380182,3.0,3366.8,3366.6,68.52113617]
[1735626380997,3.0,3366.8,3366.7,1.6014]
[1735626381945,6.73377558,3366.8,3366.7,1.6014]
[1735626382096,6.73377558,3366.8,3366.6,68.52113617]
[1735626382815,7.72241178,3367.0,3366.6,68.52113617]
[1735626383338,8.07675563,3367.0,3366.6,68.52113617]
[1735626383644,2.05167057,3366.9,3366.6,68.52113617]
[1735626383844,0.36634026,3366.8,3366.6,68.52113617]
[1735626384062,0.72068411,3366.8,3366.6,68.52113617]
[1735626384267,0.36634026,3366.8,3366.6,68.52113617]
[1735626384772,0.15542672,3366.9,3366.6,68.52113617]
[1735626384971,3.0,3366.8,3366.6,68.52113617]
[1735626385465,1.5419,3366.7,3366.6,68.52113617]
[1735626385762,6.6199879,3366.7,3366.6,68.52113617]
[1735626385931,9.6199879,3366.7,3366.6,68.52113617]
[1735626386772,10.40488454,3366.7,3366.6,68.52113617]
[1735626387333,10.05054069,3366.7,3366.6,68.52113617]
[1735626388635,14.93004569,3366.7,3366.6,68.52113617]
[1735626388869,15.28438954,3366.7,3366.6,68.52113617]
[1735626389457,15.28438954,3366.7,3366.6,66.84348151]
[1735626390289,10.14208911,3366.7,3366.6,66.84348151]
[1735626391538,9.78774526,3366.7,3366.6,66.84348151]
[1735626392561,14.93501203,3366.7,3366.6,66.84348151]
[1735626392849,15.28935588,3366.7,3366.6,66.84348151]
[1735626393374,13.39311203,3366.7,3366.6,66.84348151]
[1735626394897,13.74745588,3366.7,3366.6,66.84348151]
[1735626395793,8.60018911,3366.7,3366.6,66.84348151]
[1735626397608,10.20318911,3366.7,3366.6,66.84348151]
[1735626397762,15.3489218,3366.7,3366.6,66.84348151]
[1735626398592,10.20318911,3366.7,3366.6,66.84348151]
[1735626400138,10.20318911,3366.7,3366.6,65.16582955]
[1735626401537,8.24584526,3366.7,3366.6,65.16582955]
[1735626403555,13.38970819,3366.7,3366.6,65.16582955]
[1735626405914,8.24584526,3366.7,3366.6,65.16582955]
[1735626408501,13.38970819,3366.7,3366.6,65.16582955]
[1735626409747,13.74405204,3366.7,3366.6,65.16582955]
[1735626410409,13.74405204,3366.7,3366.6,63.48829714]
[1735626410573,8.60018911,3366.7,3366.6,63.48829714]
[1735626413351,10.21688911,3366.7,3366.6,63.48829714]
[1735626420127,10.21688911,3366.7,3366.6,62.03877221]
[1735626420813,10.21688911,3366.7,3366.6,60.36118699]
[1735626421025,7.879505,3366.7,3366.6,60.36118699]
[1735626421386,1.191505,3366.7,3366.6,60.36118699]
[1735626421630,0.3109174,3367.3,3366.6,60.36118699]
[1735626421800,1.191276,3366.9,3366.7,1.552]
[1735626422504,3.0,3366.8,3366.7,1.552]
[1735626427559,4.191276,3366.9,3366.7,1.552]
[1735626428202,0.72068411,3366.8,3366.6,60.36118699]
[1735626429837,3.0,3366.7,3366.6,60.36118699]
[1735626431035,9.19991135,3366.7,3366.6,60.36118699]
[1735626433076,3.0,3366.7,3366.6,60.36118699]
[1735626436244,8.92358411,3366.7,3366.6,60.36118699]
[1735626436444,6.138,3366.7,3366.6,60.36118699]
[1735626438500,3.0,3366.7,3366.6,60.36118699]
[1735626438866,3.72068411,3366.7,3366.6,60.36118699]
[1735626439464,3.72068411,3366.7,3366.6,58.68372216]
[1735626440396,3.36634026,3366.7,3366.6,58.68372216]
[1735626441195,3.36634026,3366.7,3366.6,60.34032216]
[1735626442096,9.56578188,3366.7,3366.6,60.34032216]
[1735626442388,9.56578188,3366.7,3366.6,58.68372216]
[1735626443928,9.72121763,3366.7,3366.6,58.68372216]
[1735626444108,11.59046148,3366.7,3366.6,58.68372216]
[1735626444712,15.27846148,3366.7,3366.6,58.68372216]
[1735626445063,9.07901986,3366.7,3366.6,58.68372216]
[1735626449707,9.07901986,3366.7,3366.6,57.00617168]
[1735626456247,10.35513186,3366.7,3366.6,57.00617168]
[1735626459243,10.65419869,3366.7,3366.6,57.00617168]
[1735626459748,11.93031069,3366.7,3366.6,43.85871456]
[1735626459914,20.73031069,3366.7,3366.6,42.51651311]
[1735626460097,20.73031069,3366.7,3366.6,40.46591484]
[1735626461363,20.37596684,3366.7,3366.6,38.04196417]
[1735626461710,19.09985484,3366.7,3366.6,38.04196417]
[1735626462028,20.37596684,3366.7,3366.6,29.75373299]
[1735626462232,20.52087534,3366.7,3366.6,29.75373299]
[1735626463115,19.97087534,3366.7,3366.6,29.75373299]
[1735626463315,3.59250258,3366.7,3366.6,29.75373299]
[1735626463915,0.45450258,3366.7,3366.6,29.75373299]
[1735626464410,0.15543575,3366.7,3366.6,29.75373299]
[1735626465416,9.34718521,3366.7,3366.6,29.75373299]
[1735626465851,9.89718521,3366.7,3366.6,29.75373299]
[1735626466140,10.26352547,3366.7,3366.6,29.75373299]
[1735626466652,12.96065797,3366.7,3366.6,29.75373299]
[1735626466831,13.31500182,3366.7,3366.6,29.75373299]
[1735626467227,16.45300182,3366.7,3366.6,29.75373299]
[1735626467443,18.10500182,3366.7,3366.6,29.75373299]
[1735626468137,11.91325236,3366.7,3366.6,29.75373299]
[1735626468517,12.21231919,3366.7,3366.6,24.24990448]
[1735626469352,12.21231919,3366.7,3366.6,22.19912259]
[1735626470025,12.21231919,3366.7,3366.6,19.94703084]
[1735626470354,12.21231919,3366.7,3366.6,18.60470869]
[1735626470554,12.21231919,3366.7,3366.6,16.92683062]
[1735626472204,12.21231919,3366.7,3366.6,15.24898265]
[1735626474336,7.50884284,3366.7,3366.6,15.24898265]
[1735626475539,3.45450258,3366.7,3366.6,15.24898265]
[1735626475853,3.15543575,3366.7,3366.6,16.82568265]
[1735626476422,3.70543575,3366.7,3366.6,16.82568265]
[1735626478554,4.07177601,3366.7,3366.6,16.82568265]
[1735626480525,4.10168401,3366.7,3366.6,15.24898265]